bitfinex/quotes_SOLUSD_20220307
["timestamp","ask_amount","ask_price","bid_price","bid_amount"]
[1646621312285,5.7279913,82.178,82.033,0.61260835]
[1646621312484,151.19309268,82.179,82.04,174.31]
[1646621312792,120.4,82.179,82.05,13.94]
[1646621312991,120.4,82.177,82.051,0.94568747]
[1646621313387,120.4,82.175,82.051,0.94568747]
[1646621313587,30.8254773,82.176,82.052,35.36371292]
[1646621313787,29.07481064,82.196,82.054,51.5612852]
[1646621313986,2.83613526,82.174,82.055,0.94568747]
[1646621314285,29.07481064,82.196,82.055,0.94568747]
[1646621314286,29.07481064,82.196,82.071,48.42890954]
[1646621314990,1.61711769,82.194,82.071,48.42890954]
[1646621315194,1.61711769,82.191,82.071,48.42890954]
[1646621315394,1.61711769,82.181,82.071,48.42890954]
[1646621315691,1.61711769,82.18,82.071,48.42890954]
[1646621315890,1.61711769,82.172,82.071,47.48322207]
[1646621316188,5.78750735,82.169,82.071,47.48322207]
[1646621316389,1.61711769,82.161,82.071,47.48322207]
[1646621316589,6.088,82.16,82.071,47.48322207]
[1646621316794,6.088,82.167,82.071,47.48322207]
[1646621316996,2.83613526,82.16,82.071,47.48322207]
[1646621317191,2.83613526,82.16,82.072,0.94568747]
[1646621317393,1.61711769,82.197,82.072,0.94568747]
[1646621317592,1.61711769,82.2,82.072,0.94568747]
[1646621317793,4.54661315,82.222,82.072,0.94568747]
[1646621317794,1.61711769,82.205,82.072,0.94568747]
[1646621318196,1.61711769,82.203,82.071,94.79282207]
[1646621318593,1.61711769,82.202,82.071,94.79282207]
[1646621319094,2.83613526,82.201,82.071,94.79282207]
[1646621319298,1.61711769,82.184,82.071,94.79282207]
[1646621319495,1.61711769,82.177,82.071,94.79282207]
[1646621319695,6.088,82.176,82.071,94.79282207]
[1646621320021,29.17178802,82.183,82.072,4.2563338]
[1646621320195,27.35021013,82.202,82.072,4.2563338]
[1646621320396,4.45325295,82.205,82.073,0.52227805]
[1646621320594,28.96732782,82.214,82.081,4.6815859]
[1646621320797,1.61711769,82.211,82.091,4.18673151]
[1646621320997,6.086,82.207,82.092,52.67427682]
[1646621321400,6.086,82.225,82.11,174.31]
[1646621321598,1.61711769,82.232,82.121,4.8386214]
[1646621321799,1.61711769,82.232,82.13,13.94]
[1646621322001,1.61711769,82.235,82.131,51.75846331]
[1646621322200,1.61711769,82.236,82.131,51.75846331]
[1646621322401,1.61711769,82.222,82.131,50.96121387]
[1646621322601,1.61711769,82.221,82.131,50.96121387]
[1646621322999,1.61711769,82.227,82.132,4.44656558]
[1646621323200,1.61711769,82.232,82.132,4.44656558]
[1646621323403,1.61711769,82.229,82.133,0.79724944]
[1646621323601,1.61711769,82.231,82.131,50.96121387]
[1646621323800,1.61711769,82.231,82.131,73.83551387]
[1646621324000,26.29661966,82.23,82.131,73.83551387]
[1646621324202,1.61711769,82.22,82.131,73.83551387]
[1646621324501,1.61711769,82.214,82.131,73.83551387]
[1646621324703,5.00486466,82.228,82.131,73.83551387]
[1646621324704,1.61711769,82.203,82.131,73.83551387]
[1646621324904,1.61711769,82.201,82.131,73.83551387]
[1646621325200,1.61711769,82.198,82.131,73.83551387]
[1646621325400,1.61711769,82.199,82.131,73.83551387]
[1646621325600,1.61711769,82.199,82.131,50.96121387]
[1646621325800,1.61711769,82.208,82.131,50.96121387]
[1646621326203,2.83613526,82.21,82.131,50.96121387]
[1646621326404,1.61711769,82.196,82.131,50.96121387]
[1646621326603,1.61711769,82.194,82.131,50.96121387]
[1646621327302,6.085,82.206,82.131,50.96121387]
[1646621327303,1.61711769,82.193,82.131,50.96121387]
[1646621327526,1.61711769,82.197,82.131,50.96121387]
[1646621328134,1.61711769,82.195,82.131,50.96121387]
[1646621328327,1.61711769,82.2,82.131,50.96121387]
[1646621328530,1.61711769,82.197,82.131,50.96121387]
[1646621328729,1.61711769,82.193,82.131,50.96121387]
[1646621328928,1.61711769,82.199,82.131,50.96121387]
[1646621329327,1.61711769,82.198,82.131,50.96121387]
[1646621329734,1.61711769,82.196,82.131,50.96121387]
[1646621329929,2.83613526,82.225,82.14,13.94]
[1646621329930,1.61711769,82.209,82.14,13.94]
[1646621330137,1.61711769,82.216,82.14,13.94]
[1646621330329,1.61711769,82.218,82.14,13.94]
[1646621330730,1.61711769,82.224,82.14,13.94]
[1646621331733,1.61711769,82.229,82.14,13.94]
[1646621331931,4.84704258,82.275,82.14,13.94]
[1646621331932,1.61711769,82.24,82.141,0.90311298]
[1646621332132,1.61711769,82.243,82.141,25.10471298]
[1646621332338,1.61711769,82.239,82.141,25.10471298]
[1646621332533,1.61711769,82.242,82.141,25.10471298]
[1646621332732,1.61711769,82.238,82.141,25.10471298]
[1646621332933,1.61711769,82.238,82.141,24.2016]
[1646621333334,1.61711769,82.236,82.141,24.2016]
[1646621333532,1.61711769,82.241,82.141,24.2016]
[1646621333735,1.61711769,82.244,82.142,0.49408078]
[1646621333938,1.61711769,82.248,82.142,0.49408078]
[1646621334138,1.61711769,82.249,82.142,0.49408078]
[1646621334337,1.61711769,82.248,82.142,0.49408078]
[1646621334536,1.61711769,82.25,82.142,0.49408078]
[1646621334737,1.61711769,82.253,82.142,0.49408078]
[1646621334937,1.61711769,82.253,82.141,24.2016]
[1646621335138,1.61711769,82.247,82.141,24.2016]
[1646621335536,1.61711769,82.245,82.141,24.2016]
[1646621335736,1.61711769,82.243,82.141,24.2016]
[1646621335937,1.61711769,82.253,82.141,53.96550225]
[1646621336138,1.61711769,82.254,82.141,53.96550225]
[1646621336339,1.61711769,82.254,82.142,5.02293575]
[1646621336539,24.8292,82.26,82.142,5.02293575]
[1646621336738,24.8292,82.26,82.143,35.7847361]
[1646621336936,24.8292,82.26,82.144,63.96874616]
[1646621337137,24.8292,82.26,82.145,0.75150052]
[1646621337436,24.8292,82.26,82.145,35.7847361]
[1646621337636,24.8292,82.26,82.145,0.75150052]
[1646621337837,24.8292,82.26,82.147,0.75150052]
[1646621338037,24.8292,82.26,82.16,13.94]
[1646621338240,24.8292,82.26,82.161,59.73726941]
[1646621338438,7.69811769,82.259,82.161,59.73726941]
[1646621338638,1.61711769,82.257,82.161,59.73726941]
[1646621338840,26.44631769,82.26,82.161,59.73726941]
[1646621339149,1.61711769,82.254,82.161,59.73726941]
[1646621339337,1.61711769,82.254,82.162,35.03323558]
[1646621339639,1.61711769,82.252,82.163,0.52887181]
[1646621339837,1.61711769,82.253,82.163,0.52887181]
[1646621340039,1.61711769,82.254,82.163,35.56210739]
[1646621340242,1.61711769,82.254,82.163,35.03323558]
[1646621340439,2.83613526,82.283,82.163,35.03323558]
[1646621340440,1.61711769,82.261,82.164,0.7364135]
[1646621340641,27.78660283,82.284,82.164,0.7364135]
[1646621340642,1.61711769,82.266,82.165,24.8524]
[1646621340840,1.61711769,82.266,82.18,13.94]
[1646621341042,1.61711769,82.27,82.181,59.88614662]
[1646621341244,1.61711769,82.268,82.182,0.7364135]
[1646621341447,1.61711769,82.27,82.182,0.7364135]
[1646621341644,1.61711769,82.27,82.182,35.76964908]
[1646621342046,1.61711769,82.267,82.182,35.03323558]
[1646621342246,1.61711769,82.266,82.182,35.03323558]
[1646621342452,1.61711769,82.265,82.182,35.03323558]
[1646621342648,1.61711769,82.258,82.181,59.14973312]
[1646621343049,1.61711769,82.255,82.181,59.14973312]
[1646621343248,1.61711769,82.241,82.181,59.14973312]
[1646621343549,1.61711769,82.237,82.156,35.03323558]
[1646621343748,1.61711769,82.235,82.14,13.94]
[1646621343950,1.61711769,82.23,82.14,13.94]
[1646621344148,1.61711769,82.226,82.14,13.94]
[1646621344348,1.61711769,82.215,82.14,13.94]
[1646621344547,1.61711769,82.216,82.141,47.88914332]
[1646621344948,1.61711769,82.219,82.141,47.88914332]
[1646621345147,1.61711769,82.22,82.141,47.88914332]
[1646621345348,24.8709,82.238,82.141,47.88914332]
[1646621345349,1.61711769,82.226,82.141,79.66050314]
[1646621345748,1.61711769,82.228,82.141,79.66050314]
[1646621346048,1.61711769,82.229,82.141,79.66050314]
[1646621346273,1.61711769,82.24,82.141,79.66050314]
[1646621346452,1.61711769,82.236,82.141,79.66050314]
[1646621346650,1.61711769,82.239,82.141,79.66050314]
[1646621346850,1.61711769,82.23,82.141,79.66050314]
[1646621347053,1.61711769,82.227,82.141,79.66050314]
[1646621347253,1.61711769,82.231,82.141,79.66050314]
[1646621347851,1.61711769,82.232,82.141,79.66050314]
[1646621348052,23.094,82.257,82.142,5.95991152]
[1646621348053,1.61711769,82.237,82.142,5.95991152]
[1646621348252,1.61711769,82.242,82.143,0.5765508]
[1646621348452,1.61711769,82.242,82.143,59.21808965]
[1646621348650,1.61711769,82.245,82.145,0.5765508]
[1646621349055,1.61711769,82.249,82.146,31.77135982]
[1646621349252,1.61711769,82.249,82.16,13.94]
[1646621349552,1.61711769,82.247,82.162,0.5765508]
[1646621349752,1.61711769,82.252,82.162,0.5765508]
[1646621349951,3.24064984,82.275,82.161,104.55522916]
[1646621349952,1.61711769,82.254,82.164,0.59373621]
[1646621350152,1.61711769,82.256,82.164,0.59373621]
[1646621350353,1.61711769,82.258,82.166,0.61549476]
[1646621350554,1.61711769,82.258,82.181,56.30526005]
[1646621350752,1.61711769,82.257,82.181,56.30526005]
[1646621350952,1.61711769,82.256,82.182,31.77135982]
[1646621351154,1.61711769,82.256,82.183,0.61549476]
[1646621351354,1.61711769,82.255,82.183,0.61549476]
[1646621351559,1.61711769,82.259,82.184,31.77135982]
[1646621351753,1.61711769,82.262,82.185,0.61549476]
[1646621352054,1.61711769,82.262,82.201,58.55263289]
[1646621352555,6.08,82.284,82.201,58.55263289]
[1646621352556,1.61711769,82.251,82.201,58.55263289]
[1646621352752,1.61711769,82.247,82.201,58.55263289]
[1646621352954,1.61711769,82.243,82.13,174.31]
[1646621353153,1.61711769,82.235,82.115,4.82965142]
[1646621353457,1.61711769,82.233,82.146,31.77135982]
[1646621353653,1.61711769,82.225,82.13,13.94]
[1646621353953,1.61711769,82.222,82.149,60.25086587]
[1646621354155,1.61711769,82.221,82.149,60.25086587]
[1646621354554,1.61711769,82.222,82.149,60.25086587]
[1646621354753,1.61711769,82.221,82.149,60.25086587]
[1646621354953,1.61711769,82.22,82.149,60.25086587]
[1646621355252,1.61711769,82.22,82.149,92.02222569]
[1646621355853,1.61711769,82.22,82.149,60.25086587]
[1646621356252,6.59404274,82.241,82.149,60.25086587]
[1646621356253,1.61711769,82.218,82.149,60.25086587]
[1646621356453,1.61711769,82.217,82.149,60.25086587]
[1646621357052,1.61711769,82.216,82.149,60.25086587]
[1646621357256,1.61711769,82.212,82.149,60.25086587]
[1646621357654,1.61711769,82.213,82.149,60.25086587]
[1646621359161,6.59404274,82.232,82.149,60.25086587]
[1646621359162,1.61711769,82.209,82.149,60.25086587]
[1646621359660,1.61711769,82.206,82.149,60.25086587]
[1646621360462,1.61711769,82.205,82.13,13.94]
[1646621360661,6.083,82.226,82.122,31.77135982]
[1646621360662,1.61711769,82.194,82.122,31.77135982]
[1646621361062,1.61711769,82.193,82.122,31.77135982]
[1646621361288,1.61711769,82.198,82.102,23.3723]
[1646621361464,1.61711769,82.18,82.123,55.72297971]
[1646621361665,1.61711769,82.174,82.123,55.72297971]
[1646621361862,1.61711769,82.174,82.09,13.94]
[1646621362062,1.61711769,82.172,82.08,13.94]
[1646621362264,1.61711769,82.166,82.08,13.94]
[1646621362468,1.61711769,82.161,82.06,13.94]
[1646621362663,5.49050212,82.159,82.06,13.94]
[1646621362866,6.089,82.158,82.06,13.94]
[1646621363064,1.61711769,82.153,82.061,49.36995901]
[1646621363263,1.61711769,82.151,82.061,49.36995901]
[1646621363667,1.61711769,82.148,82.061,49.36995901]
[1646621363863,6.089,82.147,82.061,49.36995901]
[1646621364062,6.089,82.147,82.062,25.69428213]
[1646621364268,6.089,82.147,82.061,49.36995901]
[1646621364269,23.2412,82.158,82.061,49.36995901]
[1646621364463,6.089,82.157,82.061,49.36995901]
[1646621365563,23.2412,82.158,82.061,49.36995901]
[1646621366365,5.54592231,82.157,82.061,49.36995901]
[1646621366564,6.089,82.156,82.061,49.36995901]
[1646621366769,8.92513526,82.156,82.061,49.36995901]
[1646621366966,2.83613526,82.155,82.061,49.36995901]
[1646621367167,6.089,82.154,82.061,49.36995901]
[1646621367369,13.94,82.15,82.061,49.36995901]
[1646621367570,5.53908472,82.148,82.061,49.36995901]
[1646621367970,6.089,82.147,82.061,49.36995901]
[1646621368371,2.83613526,82.146,82.061,49.36995901]
[1646621368577,6.089,82.145,82.036,24.9835]
[1646621368796,4.93606168,82.139,82.02,13.94]
[1646621369000,30.9341,82.138,82.02,13.94]
[1646621369201,33.77023526,82.138,82.02,13.94]
[1646621369402,33.77023526,82.138,82.021,26.35062331]
[1646621369602,30.9341,82.138,82.022,53.25251248]
[1646621369802,24.8431,82.138,82.022,53.25251248]
[1646621369998,24.8431,82.138,82.024,0.52168217]
[1646621370198,24.8431,82.138,82.031,0.59402268]
[1646621370399,24.8431,82.138,82.041,61.94623552]
[1646621370600,24.8431,82.138,82.051,0.59402268]
[1646621371404,24.8431,82.138,82.05,13.94]
[1646621372801,6.09,82.137,82.05,13.94]
[1646621373902,4.46888703,82.137,82.05,13.94]
[1646621374505,6.09,82.136,82.05,13.94]
[1646621374705,6.09,82.137,82.05,13.94]
[1646621375001,24.8431,82.138,82.05,13.94]
[1646621375403,24.8431,82.138,82.05,32.2168]
[1646621375712,24.8431,82.138,82.051,0.53342429]
[1646621376104,24.8431,82.138,82.05,13.94]
[1646621376703,24.8431,82.138,82.05,32.2177]
[1646621376905,24.8431,82.138,82.05,13.94]
[1646621377107,11.61125886,82.137,82.05,13.94]
[1646621378106,6.09,82.137,82.05,13.94]
[1646621378504,120.4,82.137,82.05,13.94]
[1646621378705,126.49,82.137,82.05,13.94]
[1646621379505,6.09,82.137,82.05,57.88249837]
[1646621379709,24.8431,82.138,82.051,0.62967138]
[1646621380112,120.4,82.136,82.05,39.60449837]
[1646621380305,120.4,82.136,82.05,13.94]
[1646621380509,120.4,82.136,82.05,32.2189]
[1646621380705,6.09,82.135,82.05,32.2189]
[1646621380907,24.8431,82.138,82.05,32.2189]
[1646621380908,24.8431,82.138,82.051,0.5132816]
[1646621381307,24.8431,82.138,82.05,13.94]
[1646621381707,120.4,82.136,82.05,13.94]
[1646621381908,6.09,82.137,82.061,61.55209207]
[1646621382110,24.8431,82.138,82.061,61.55209207]
[1646621382511,2.83613526,82.163,82.061,61.55209207]
[1646621382710,6.089,82.156,82.062,0.52592628]
[1646621382910,143.4714,82.169,82.062,0.52592628]
[1646621383111,143.4714,82.169,82.062,25.41886598]
[1646621383312,23.4335,82.168,82.08,18.2702]
[1646621383511,120.4,82.156,82.081,57.41886798]
[1646621384114,120.4,82.156,82.063,23.7674]
[1646621384314,120.4,82.149,82.06,13.94]
[1646621384513,120.4,82.147,82.033,24.8929397]
[1646621384713,120.4,82.147,82.05,13.94]
[1646621385115,120.4,82.147,82.06,13.94]
[1646621385513,120.4,82.154,82.06,13.94]
[1646621385712,23.4335,82.155,82.06,13.94]
[1646621385913,23.4335,82.155,82.06,32.2156]
[1646621386112,23.4335,82.155,82.06,57.1085397]
[1646621386513,120.4,82.154,82.06,57.1085397]
[1646621386713,120.4,82.154,82.06,31.7156]
[1646621387313,23.4335,82.155,82.06,31.7156]
[1646621387543,120.4,82.154,82.06,31.7156]
[1646621387813,23.4335,82.155,82.06,31.7156]
[1646621388615,120.4,82.154,82.06,13.44]
[1646621388819,1.61711769,82.151,82.06,13.44]
[1646621389019,1.61711769,82.142,82.051,23.7674]
[1646621389215,1.61711769,82.136,82.04,13.94]
[1646621389415,120.4,82.129,82.03,13.94]
[1646621389615,120.4,82.127,82.03,13.94]
[1646621389815,120.4,82.125,82.03,13.94]
[1646621390019,120.4,82.125,82.031,50.24850783]
[1646621390215,120.4,82.123,82.031,50.24850783]
[1646621390916,120.4,82.123,82.031,75.14144753]
[1646621391419,120.4,82.123,82.031,50.24850783]
[1646621391420,1.61711769,82.111,82.031,50.24850783]
[1646621391616,122.01711769,82.109,82.031,50.24850783]
[1646621391816,6.091,82.108,82.031,50.24850783]
[1646621392016,120.4,82.107,82.031,50.24850783]
[1646621392216,120.4,82.105,82.031,50.24850783]
[1646621392619,122.01711769,82.103,82.031,50.24850783]
[1646621392818,120.4,82.103,82.031,50.24850783]
[1646621393618,120.4,82.102,82.031,50.24850783]
[1646621394219,1.61711769,82.111,82.031,50.24850783]
[1646621394618,1.61711769,82.113,82.031,50.24850783]
[1646621394820,120.4,82.111,82.031,50.24850783]
[1646621395522,120.4,82.109,82.031,50.24850783]
[1646621395720,1.61711769,82.101,82.031,50.24850783]
[1646621395920,120.4,82.099,82.031,50.24850783]
[1646621396119,122.01711769,82.099,82.031,50.24850783]
[1646621396328,120.4,82.099,82.031,50.24850783]
[1646621396921,72.24,82.097,82.001,37.19128518]
[1646621397121,72.24,82.097,82.0,110.04704545]
[1646621397122,72.24,82.091,82.0,110.04704545]
[1646621397321,1.61711769,82.083,82.0,110.04704545]
[1646621397520,5.76499183,82.08,82.0,110.04704545]
[1646621397725,120.4,82.059,82.0,110.04704545]
[1646621398723,1.61711769,82.065,82.0,110.04704545]
[1646621398924,120.4,82.063,82.0,110.04704545]
[1646621399124,120.4,82.063,82.001,64.19540388]
[1646621399326,1.61711769,82.077,82.001,64.19540388]
[1646621399528,1.61711769,82.076,82.001,64.19540388]
[1646621399825,23.3248,82.079,82.001,64.19540388]
[1646621400026,120.4,82.077,82.01,18.2892]
[1646621400231,6.094,82.076,82.01,18.2892]
[1646621400525,23.3248,82.079,82.01,18.2892]
[1646621400828,24.8832,82.091,82.01,18.2892]
[1646621400829,24.8832,82.091,82.021,58.78405696]
[1646621401028,24.8832,82.091,82.04,18.277]
[1646621401326,120.4,82.111,82.041,49.84553678]
[1646621402748,6.091,82.11,82.05,18.2807]
[1646621402946,120.4,82.12,82.05,18.2807]
[1646621403547,120.4,82.12,82.05,46.61001346]
[1646621403846,1.61711769,82.134,82.05,46.61001346]
[1646621404046,120.4,82.132,82.05,46.61001346]
[1646621404247,120.4,82.13,82.05,46.61001346]
[1646621404650,1.61711769,82.141,82.051,0.59914897]
[1646621404848,1.61711769,82.157,82.051,0.59914897]
[1646621405046,1.61711769,82.162,82.081,61.55021554]
[1646621405448,1.61711769,82.163,82.081,61.55021554]
[1646621405646,120.4,82.153,82.081,61.55021554]
[1646621406048,120.4,82.151,82.081,61.55021554]
[1646621406247,120.4,82.151,82.06,13.94]
[1646621406650,1.61711769,82.141,82.053,46.548]
[1646621406848,1.61711769,82.135,82.04,13.94]
[1646621407048,120.4,82.133,82.04,13.94]
[1646621407249,120.4,82.131,82.043,58.68130038]
[1646621407447,1.61711769,82.126,82.043,58.68130038]
[1646621407648,120.4,82.124,82.043,58.68130038]
[1646621407849,120.4,82.122,82.043,58.68130038]
[1646621408051,120.4,82.12,82.043,58.68130038]
[1646621408248,120.4,82.118,82.043,58.68130038]
[1646621409249,120.4,82.117,82.05,18.2804]
[1646621410250,1.61711769,82.13,82.05,18.2804]
[1646621410656,122.01711769,82.132,82.05,18.2804]
[1646621410852,120.4,82.132,82.05,18.2804]
[1646621411251,122.01711769,82.136,82.05,18.2804]
[1646621411453,120.4,82.134,82.05,18.2804]
[1646621411952,120.4,82.132,82.05,18.2804]
[1646621412353,125.63722814,82.132,82.043,88.74962817]
[1646621412559,1.61711769,82.127,82.043,58.68130038]
[1646621412756,1.61711769,82.118,81.971,24.5989]
[1646621412954,1.61711769,82.108,82.012,30.06832779]
[1646621413164,5.59063186,82.105,82.0,110.04704545]
[1646621413456,120.4,82.103,82.001,30.06832779]
[1646621413656,120.4,82.103,82.002,61.07611779]
[1646621414055,120.4,82.103,82.003,30.06832779]
[1646621414255,5.14454937,82.102,82.01,18.2894]
[1646621414456,120.4,82.103,82.01,18.2894]
[1646621414655,120.4,82.103,82.011,30.06832779]
[1646621415660,120.4,82.101,82.031,51.67594011]
[1646621415856,120.4,82.099,82.031,51.67594011]
[1646621416056,5.24339768,82.102,82.031,51.67594011]
[1646621416057,120.4,82.097,82.031,51.67594011]
[1646621416259,120.4,82.095,82.031,51.67594011]
[1646621416457,192.64,82.095,82.011,30.06832779]
[1646621416858,124.61875173,82.093,82.011,30.06832779]
[1646621417058,120.4,82.091,82.011,30.06832779]
[1646621417257,120.4,82.089,82.011,30.06832779]
[1646621417459,72.24,82.086,82.0,110.04704545]
[1646621417660,192.64,82.079,82.0,110.04704545]
[1646621418060,1.61711769,82.074,82.0,110.04704545]
[1646621418260,126.19276323,82.059,82.0,110.04704545]
[1646621418463,120.4,82.057,82.001,46.22863829]
[1646621418660,120.4,82.057,82.0,110.04704545]
[1646621418858,120.4,82.055,82.0,110.04704545]
[1646621419072,8.00229243,82.056,82.0,110.04704545]
[1646621419259,120.4,82.055,82.0,110.04704545]
[1646621419460,147.76446895,82.055,82.001,64.28678997]
[1646621419657,147.76446895,82.055,82.0,110.04704545]
[1646621419658,120.4,82.053,82.0,110.04704545]
[1646621420661,5.16852577,82.051,82.0,110.04704545]
[1646621421461,124.59755051,82.062,82.0,110.04704545]
[1646621421664,4.1282025,82.06,82.0,110.04704545]
[1646621421861,6.095,82.059,82.0,110.04704545]
[1646621422061,192.64,82.058,82.0,110.04704545]
[1646621422261,120.4,82.056,82.0,110.04704545]
[1646621422461,124.72499534,82.049,82.0,110.04704545]
[1646621422663,120.4,82.047,82.0,110.04704545]
[1646621422863,120.4,82.045,82.0,110.04704545]
[1646621423064,120.4,82.043,82.0,110.04704545]
[1646621423263,120.4,82.039,82.0,110.04704545]
[1646621423466,120.4,82.037,82.001,51.21375376]
[1646621423663,120.4,82.035,82.001,51.21375376]
[1646621423964,120.4,82.035,82.0,110.04704545]
[1646621424364,5.04691362,82.058,82.0,110.04704545]
[1646621424763,4.93953009,82.076,82.0,110.04704545]
[1646621424964,1.61711769,82.078,82.0,110.04704545]
[1646621425164,10.84513973,82.076,82.0,110.04704545]
[1646621425365,1.61711769,82.063,82.0,110.04704545]
[1646621425565,120.4,82.069,82.0,110.04704545]
[1646621425765,4.36508741,82.066,82.0,110.04704545]
[1646621425971,2.83613526,82.062,82.0,110.04704545]
[1646621426164,120.4,82.06,82.0,110.04704545]
[1646621426364,120.4,82.058,82.0,110.04704545]
[1646621426570,5.93511231,82.057,82.0,110.04704545]
[1646621426864,120.4,82.055,82.0,110.04704545]
[1646621427466,2.83613526,82.068,82.0,110.04704545]
[1646621427667,5.95342042,82.082,82.0,110.04704545]
[1646621427870,6.094,82.081,82.0,110.04704545]
[1646621428666,120.4,82.076,82.0,110.04704545]
[1646621428868,123.23613526,82.076,82.0,110.04704545]
[1646621429066,5.22576005,82.073,82.0,110.04704545]
[1646621429467,120.4,82.071,82.0,110.04704545]
[1646621429668,120.4,82.069,82.0,110.04704545]
[1646621429867,72.24,82.058,82.0,110.04704545]
[1646621430068,120.4,82.049,82.0,110.04704545]
[1646621430268,5.31733747,82.046,82.0,110.04704545]
[1646621430672,120.4,82.044,82.0,110.04704545]
[1646621431074,120.4,82.042,82.0,110.04704545]
[1646621431269,120.4,82.04,82.0,110.04704545]
[1646621431468,4.2038989,82.037,82.0,110.04704545]
[1646621431668,120.4,82.035,82.0,110.04704545]
[1646621431870,120.4,82.033,82.0,110.04704545]
[1646621432069,0.36177114,82.009,82.0,110.04704545]
[1646621433270,0.36177114,82.009,82.001,51.42251784]
[1646621433771,0.36177114,82.009,82.0,110.04704545]
[1646621435373,0.36177114,82.009,82.001,2.32078613]
[1646621436172,2.31999999,82.008,82.0,110.04704545]
[1646621436774,55.0,82.007,82.0,79.57197973]
[1646621436973,57.83613526,82.007,81.98,6.8]
[1646621437172,120.4,82.006,81.98,6.8]
[1646621437774,2.31999999,82.008,81.921,23.8545]
[1646621438177,2.31999999,82.008,81.93,13.94]
[1646621438575,2.31999999,82.008,81.931,57.0997129]
[1646621439978,120.4,82.007,81.903,24.1024]
[1646621440178,120.4,82.007,81.903,23.66052]
[1646621440179,120.4,82.005,81.903,23.66052]
[1646621440378,120.4,81.999,81.856,18.6533]
[1646621440578,120.4,81.997,81.855,48.557]
[1646621440780,72.24,81.992,81.863,6.30833387]
[1646621440978,4.76722974,81.978,81.863,6.30833387]
[1646621441179,1.61711769,81.984,81.863,6.30833387]
[1646621441180,197.05266473,81.969,81.863,6.30833387]
[1646621441482,192.64,81.967,81.863,4.49510527]
[1646621441678,192.64,81.965,81.863,4.49510527]
[1646621441884,120.4,81.955,81.863,4.49510527]
[1646621442080,192.64,81.945,81.863,4.49510527]
[1646621442378,120.4,81.945,81.855,48.557]
[1646621442781,6.105,81.954,81.855,48.557]
[1646621442979,120.4,81.953,81.855,48.557]
[1646621443180,4.78341316,81.961,81.856,6.104]
[1646621443381,4.78341316,81.961,81.86,18.3203]
[1646621443580,4.78341316,81.961,81.861,6.104]
[1646621443803,120.4,81.962,81.861,6.104]
[1646621443981,6.104,81.961,81.86,13.94]
[1646621444178,120.4,81.96,81.861,6.104]
[1646621444379,120.4,81.958,81.861,6.104]
[1646621444578,120.4,81.958,81.856,6.104]
[1646621444780,120.4,81.958,81.88,18.3157]
[1646621444980,120.4,81.956,81.881,60.33884824]
[1646621445179,4.02052172,81.953,81.881,60.33884824]
[1646621445381,120.4,81.951,81.881,60.33884824]
[1646621445582,126.503,81.952,81.881,60.33884824]
[1646621445781,0.36177114,81.969,81.89,18.3146]
[1646621446182,0.36177114,81.969,81.881,60.33884824]
[1646621446382,3.1979064,81.969,81.881,60.33884824]
[1646621446584,120.4,81.964,81.881,60.33884824]
[1646621446781,120.4,81.958,81.881,60.33884824]
[1646621446985,5.09194104,81.953,81.881,60.33884824]
[1646621447183,5.65979329,81.944,81.861,23.0962]
[1646621447383,120.4,81.942,81.861,23.0962]
[1646621447583,120.4,81.942,81.862,6.104]
[1646621447983,5.47757487,81.934,81.862,6.104]
[1646621448184,5.47757487,81.934,81.829,6.105]
[1646621448185,120.4,81.928,81.829,6.105]
[1646621448484,120.4,81.918,81.829,6.105]
[1646621448686,120.4,81.918,81.816,48.344]
[1646621449088,120.4,81.918,81.831,63.05387307]
[1646621449385,13.94,81.94,81.831,63.05387307]
[1646621449386,2.83613526,81.917,81.832,6.106]
[1646621449586,72.24,81.912,81.831,63.05387307]
[1646621449785,126.507,81.911,81.831,63.05387307]
[1646621449986,120.4,81.911,81.84,18.3267]
[1646621450186,120.4,81.922,81.84,18.3267]
[1646621450584,120.4,81.922,81.841,6.106]
[1646621450787,120.4,81.921,81.841,6.106]
[1646621450986,6.106,81.945,81.86,18.322]
[1646621451185,5.38753999,81.967,81.861,57.12983497]